bitfinex/quotes_SOLUSD_20250420
["timestamp","ask_amount","ask_price","bid_price","bid_amount"]
[1745110043888,33.36579587,140.44,140.39,7.1228377]
[1745110045107,25.77021038,140.44,140.39,7.1228377]
[1745110045315,37.65814519,140.44,140.39,7.1228377]
[1745110047413,37.65814519,140.44,140.38,45.01123114]
[1745110047617,11.88793481,140.42,140.38,26.0]
[1745110048496,11.88793481,140.42,140.38,33.12342351]
[1745110049013,19.00906035,140.43,140.38,45.01135832]
[1745110049606,7.12112554,140.43,140.38,45.01135832]
[1745110051098,7.12064554,140.44,140.39,11.88793481]
[1745110051300,19.00858035,140.44,140.39,11.88793481]
[1745110051599,25.76976991,140.45,140.39,11.88793481]
[1745110051804,25.76976991,140.45,140.4,11.88793481]
[1745110052715,25.76976991,140.45,140.4,19.00999938]
[1745110054202,37.65770472,140.45,140.4,11.88793481]
[1745110054823,11.88793481,140.44,140.39,19.01077024]
[1745110055523,19.00875203,140.44,140.39,19.01077024]
[1745110056922,7.12081722,140.44,140.39,19.01077024]
[1745110057123,7.12081722,140.44,140.4,19.01041847]
[1745110057924,37.65775575,140.45,140.4,19.01041847]
[1745110059823,11.88793481,140.43,140.38,26.0]
[1745110060126,18.64964886,140.41,140.35,87.42493143]
[1745110060323,18.64964886,140.39,140.35,80.29999998]
[1745110060509,18.64964886,140.39,140.35,92.18793479]
[1745110060706,18.64964886,140.39,140.35,80.29999998]
[1745110060908,18.64964886,140.39,140.35,99.31281665]
[1745110061122,18.00153481,140.41,140.36,11.88793481]
[1745110061925,18.64964886,140.39,140.36,11.88793481]
[1745110065130,7.12316692,140.39,140.36,11.88793481]
[1745110065832,18.64964886,140.38,140.35,92.18793479]
[1745110066033,18.64964886,140.38,140.35,11.88793481]
[1745110067331,18.64964886,140.38,140.35,7.61191785]
[1745110068035,14.24,140.42,140.37,7.61191785]
[1745110068329,33.14902806,140.45,140.4,7.61191785]
[1745110068535,25.77012735,140.44,140.41,7.61191785]
[1745110068835,25.77012735,140.44,140.4,7.61191785]
[1745110069528,25.77012735,140.44,140.39,7.61191785]
[1745110069735,33.3820452,140.44,140.39,7.61191785]
[1745110073140,25.77012735,140.44,140.39,7.61191785]
[1745110075638,26.26156671,140.42,140.37,7.61191785]
[1745110076345,26.26156671,140.43,140.37,7.61191785]
[1745110076545,7.12149266,140.42,140.38,7.61191785]
[1745110080441,7.12149266,140.42,140.39,7.61191785]
[1745110081445,25.77071049,140.43,140.39,14.73483357]
[1745110081635,18.64964886,140.44,140.4,7.61191785]
[1745110081830,18.64964886,140.44,140.41,7.61191785]
[1745110082141,7.736,140.45,140.41,7.61191785]
[1745110082341,21.42211108,140.47,140.43,7.61191785]
[1745110082547,18.64964886,140.46,140.43,7.61191785]
[1745110082746,0.063,140.47,140.44,7.61191785]
[1745110082950,7.18211974,140.47,140.43,7.61191785]
[1745110083145,7.18211974,140.47,140.42,33.61191785]
[1745110083452,18.64964886,140.46,140.42,33.61191785]
[1745110083747,18.64964886,140.46,140.42,26.0]
[1745110083748,7.11997152,140.45,140.42,26.0]
[1745110084853,25.83183714,140.47,140.43,7.61191785]
[1745110085034,18.71264886,140.47,140.43,7.61191785]
[1745110085234,18.71264886,140.47,140.44,7.61191785]
[1745110085853,18.71264886,140.47,140.43,7.61191785]
[1745110086044,0.063,140.47,140.45,7.61191785]
[1745110086253,0.063,140.47,140.46,7.61191785]
[1745110088060,0.063,140.47,140.45,14.73149456]
[1745110088559,0.063,140.47,140.45,7.61191785]
[1745110089259,0.063,140.47,140.44,14.73220413]
[1745110092576,0.063,140.47,140.42,113.91191783]
[1745110092776,7.61191785,140.46,140.42,106.29999998]
[1745110094176,18.64964886,140.45,140.42,26.0]
[1745110095176,18.64964886,140.45,140.42,33.61191785]
[1745110097561,0.063,140.47,140.46,26.0]
[1745110097762,0.063,140.49,140.46,7.61191785]
[1745110097958,0.063,140.51,140.49,7.61191785]
[1745110098170,0.063,140.53,140.5,7.61191785]
[1745110098376,0.063,140.53,140.52,7.61191785]
[1745110099085,0.063,140.53,140.52,14.72834255]
[1745110099969,0.063,140.53,140.52,26.0]
[1745110100977,0.063,140.53,140.52,33.61191785]
[1745110101176,0.063,140.53,140.52,40.72834255]
[1745110104866,0.063,140.53,140.52,33.61191785]
[1745110105176,0.063,140.53,140.52,40.72834255]
[1745110106784,0.063,140.53,140.52,33.1164247]
[1745110106974,0.063,140.53,140.52,40.72834255]
[1745110110487,0.063,140.53,140.52,121.02834253]
[1745110111094,1e-08,140.53,140.52,40.72834255]
[1745110111995,1e-08,140.53,140.52,122.02834255]
[1745110114396,1e-08,140.53,140.52,136.74834255]
[1745110115594,1e-08,140.53,140.52,122.02834255]
[1745110115785,1e-08,140.53,140.52,88.4164247]
[1745110115979,1e-08,140.53,140.52,114.4164247]
[1745110116793,1e-08,140.53,140.52,122.02834255]
[1745110119789,1e-08,140.53,140.52,114.4164247]
[1745110120184,1e-08,140.53,140.52,81.3]
[1745110120875,1e-08,140.53,140.5,40.72898499]
[1745110121192,1e-08,140.53,140.5,44.9859583]
[1745110122596,1e-08,140.53,140.52,11.86889116]
[1745110125000,1e-08,140.53,140.51,18.98541604]
[1745110125700,1e-08,140.53,140.5,44.98613608]
[1745110125898,1e-08,140.53,140.5,33.11724492]
[1745110126099,18.64964887,140.53,140.5,26.0]
[1745110126595,18.64964887,140.53,140.5,33.11729707]
[1745110126801,1e-08,140.53,140.5,33.11729707]
[1745110128208,1e-08,140.53,140.5,44.98618823]
[1745110130104,1e-08,140.53,140.5,33.11729707]
[1745110131704,1e-08,140.53,140.49,18.98667259]
[1745110134104,18.64964886,140.51,140.47,11.86889116]
[1745110134308,18.64964886,140.51,140.46,37.89889116]
[1745110134809,18.64964886,140.51,140.46,26.03]
[1745110135012,18.64964886,140.51,140.46,37.89889116]
[1745110135309,18.64964886,140.51,140.47,7.11883141]
[1745110135710,30.51854002,140.51,140.47,7.11883141]
[1745110136109,37.63574464,140.51,140.46,45.01822023]
[1745110136309,11.86889116,140.5,140.46,26.03]
[1745110136491,11.86889116,140.49,140.46,0.03]
[1745110137007,30.51854002,140.49,140.46,0.03]
[1745110137195,11.86889116,140.48,140.46,0.03]
[1745110138091,37.63686247,140.49,140.46,0.03]
[1745110141195,33.37049002,140.49,140.46,0.03]
[1745110142823,18.64964886,140.47,140.46,0.03]
[1745110146624,14.72066653,140.49,140.46,0.03]
[1745110149925,15.73691871,140.47,140.46,0.03]
[1745110151425,41.50552535,140.47,140.46,0.03]
[1745110152004,33.90300664,140.47,140.46,0.03]
[1745110152933,41.50552535,140.47,140.46,0.03]
[1745110168840,27.34920664,140.47,140.46,0.03]
[1745110169022,18.64964886,140.49,140.46,0.03]
[1745110170234,25.76791175,140.49,140.46,0.03]
[1745110171829,18.64964886,140.49,140.46,0.03]
[1745110172036,18.64964886,140.49,140.46,7.63251871]
[1745110173014,25.76763425,140.49,140.46,0.03]
[1745110173222,33.37015296,140.49,140.46,0.03]
[1745110174417,18.64964886,140.47,140.46,0.03]
[1745110175127,7.60251871,140.47,140.46,0.03]
[1745110176534,14.72147649,140.47,140.46,0.03]
[1745110184625,33.37112535,140.47,140.46,0.03]
[1745110187642,18.64964886,140.45,140.4,0.03]
[1745110187822,32.5413,140.46,140.4,0.03]
[1745110187823,26.25216757,140.41,140.4,0.03]
[1745110188949,33.37416742,140.41,140.4,0.03]
[1745110191742,39.48496742,140.41,140.4,0.03]
[1745110192851,39.48496742,140.41,140.4,1e-08]
[1745110193663,44.64964886,140.38,140.37,0.03]
[1745110193950,66.53216757,140.38,140.37,0.03]
[1745110196254,73.65568943,140.38,140.37,0.03]
[1745110199450,47.65568943,140.38,140.37,0.03]
[1745110200236,32.92964886,140.38,140.37,0.03]
[1745110200464,14.72401137,140.42,140.37,7.63251871]
[1745110200962,26.25216757,140.41,140.37,0.03]
[1745110201134,33.37420276,140.41,140.37,0.03]
[1745110201557,7.60251871,140.4,140.37,0.03]
[1745110202549,7.60251871,140.39,140.37,0.03]
[1745110203046,18.64964886,140.38,140.37,0.03]
[1745110203249,26.25216757,140.38,140.37,0.03]
[1745110203448,40.51216757,140.38,140.37,0.03]
[1745110203647,40.51216757,140.38,140.28,14.76780141]
[1745110203953,18.64964886,140.33,140.29,7.60251871]
[1745110204758,18.64964886,140.33,140.29,14.73058953]
[1745110205049,18.64964886,140.33,140.3,7.60251871]
[1745110205239,26.25216757,140.37,140.32,7.60251871]
[1745110205645,18.64964886,140.37,140.34,7.60251871]
[1745110206851,18.64964886,140.37,140.33,7.60251871]
[1745110207751,18.64964886,140.37,140.32,33.12656784]
[1745110207938,18.64964886,140.37,140.33,7.60251871]
[1745110208138,18.64964886,140.37,140.34,7.60251871]
[1745110208443,18.64964886,140.4,140.35,9.24411871]
[1745110208653,18.64964886,140.4,140.36,7.60251871]
[1745110209455,25.77233001,140.4,140.36,7.60251871]
[1745110210143,25.77233001,140.4,140.35,16.3686709]
[1745110211230,37.66588316,140.4,140.35,1.6416]
[1745110211435,30.54320201,140.38,140.32,126.319908]
[1745110212657,37.66718669,140.38,140.33,11.89355315]
[1745110212853,37.66718669,140.38,140.32,126.319908]
[1745110213154,18.64964886,140.35,140.32,107.3]
[1745110213334,18.64964886,140.35,140.32,26.0]
[1745110214152,25.77481267,140.35,140.3,20.66251978]
[1745110216058,17.8085829,140.39,140.31,11.89355315]
[1745110216244,37.66672387,140.38,140.33,11.89355315]
[1745110216436,25.77317072,140.38,140.33,11.89355315]
[1745110216641,25.77317072,140.38,140.34,11.89355315]
[1745110216842,11.89355315,140.4,140.35,11.89355315]
[1745110217042,18.64964886,140.39,140.35,11.89355315]
[1745110217244,18.64964886,140.39,140.34,11.89355315]
[1745110218161,18.64964886,140.39,140.35,19.01859768]
[1745110220562,18.64964886,140.39,140.34,11.89355315]
[1745110222264,18.64964886,140.39,140.35,7.12504453]
[1745110225063,11.89355315,140.37,140.32,107.3]
[1745110225951,7.12329606,140.39,140.33,11.89355315]
[1745110226157,7.12329606,140.39,140.34,11.89355315]
[1745110226358,36.45569812,140.41,140.36,11.89355315]
[1745110226359,37.66520186,140.41,140.36,11.89355315]
[1745110226563,18.64964886,140.4,140.36,11.89355315]
[1745110228473,18.64964886,140.4,140.35,11.89355315]
[1745110229369,25.77223337,140.4,140.35,11.89355315]
[1745110229556,37.66578652,140.4,140.35,11.89355315]
[1745110229868,11.89355315,140.36,140.33,81.3]
[1745110230067,11.89355315,140.36,140.31,19.02031016]
[1745110231176,7.12504453,140.35,140.31,19.02031016]
[1745110231690,7.12475276,140.36,140.31,19.02031016]
[1745110234474,25.7747367,140.35,140.31,11.89355315]
[1745110235172,25.7747367,140.35,140.31,19.02051301]
[1745110236482,25.7747367,140.35,140.32,11.89355315]
[1745110237060,18.64964886,140.35,140.32,11.89355315]
[1745110237259,18.64964886,140.35,140.32,7.61540986]
[1745110237581,7.12417357,140.37,140.32,7.61540986]
[1745110237773,7.12417357,140.37,140.33,7.61540986]
[1745110239382,7.12417357,140.37,140.32,7.12615683]
[1745110239681,7.12417357,140.37,140.32,14.74156669]
[1745110240982,18.64964886,140.36,140.32,7.61540986]
[1745110241282,18.64964886,140.36,140.31,14.74230099]
[1745110243161,18.64964886,140.36,140.3,123.68437973]
[1745110243162,33.39008677,140.36,140.3,123.68437973]
[1745110243366,7.61540986,140.35,140.3,114.91540986]
[1745110243974,7.61540986,140.35,140.3,107.3]
[1745110245991,25.77520109,140.34,140.3,107.3]
[1745110246690,25.77520109,140.34,140.3,114.91540986]
[1745110246985,25.77520109,140.34,140.3,122.04296248]
[1745110247689,7.11962092,140.46,140.35,26.0]
[1745110247867,15.24477437,140.47,140.41,7.61540986]
[1745110248072,7.11897437,140.47,140.42,14.73687091]
[1745110248372,14.79721442,140.48,140.42,14.73687091]
[1745110248873,18.64964886,140.47,140.42,14.73687091]
[1745110249075,7.61540986,140.46,140.41,14.73722265]
[1745110249297,11.94722915,140.45,140.4,11.88422915]
[1745110250729,11.94722915,140.45,140.4,19.00653848]
[1745110252161,18.64964886,140.44,140.4,11.88422915]
[1745110252338,11.88422915,140.43,140.39,114.42295]
[1745110253332,18.64964886,140.42,140.39,81.3]
[1745110253544,18.64964886,140.42,140.38,7.12333242]
[1745110254421,18.64964886,140.42,140.38,19.00756157]
[1745110256016,30.53387801,140.42,140.38,7.12333242]
[1745110256410,37.6555556,140.42,140.37,33.12397066]
[1745110256613,11.88422915,140.41,140.37,33.12397066]
[1745110257133,37.6555556,140.42,140.37,33.12397066]
[1745110257643,37.6555556,140.42,140.37,45.00819981]
[1745110258014,30.53387801,140.42,140.37,45.00819981]
[1745110260242,18.64964886,140.42,140.38,11.88422915]
[1745110260439,18.64964886,140.44,140.39,11.88422915]
[1745110260733,30.59687801,140.45,140.4,11.88422915]
[1745110261209,18.71264886,140.45,140.4,11.88422915]
[1745110261828,30.59687801,140.45,140.4,11.88422915]
[1745110262532,30.59687801,140.45,140.38,19.00775101]
[1745110262533,11.88422915,140.43,140.38,19.00775101]
[1745110263041,11.88422915,140.44,140.39,11.88422915]
[1745110263816,11.88422915,140.44,140.4,7.12250712]
[1745110264016,0.063,140.45,140.4,19.00673627]
[1745110264218,18.71264886,140.45,140.4,19.00673627]
[1745110265539,37.71690495,140.45,140.4,19.00673627]
[1745110266025,37.71690495,140.45,140.4,7.12250712]
[1745110266225,11.88422915,140.44,140.39,11.88422915]
[1745110267316,19.0047672,140.44,140.39,19.00694136]
[1745110267708,11.88422915,140.44,140.39,19.00694136]
[1745110267895,37.71700508,140.45,140.39,19.00694136]
[1745110268097,37.71700508,140.45,140.4,11.88422915]
[1745110268301,30.59687801,140.45,140.4,11.88422915]
[1745110268812,37.71685974,140.45,140.4,11.88422915]
[1745110269311,37.71685974,140.45,140.41,7.12199985]
[1745110269783,30.59687801,140.45,140.41,7.12199985]
[1745110270517,0.063,140.45,140.41,7.12199985]
[1745110271300,0.063,140.45,140.42,7.60603538]
[1745110271504,0.063,140.45,140.43,7.60603538]
[1745110271712,0.063,140.45,140.44,7.60603538]
[1745110272415,0.063,140.45,140.44,88.90603538]
[1745110273291,0.063,140.45,140.44,93.17299657]
[1745110273811,0.063,140.45,140.44,100.29347506]
[1745110274218,0.063,140.47,140.46,37.87299657]
[1745110274406,1e-08,140.47,140.46,120.78789657]
[1745110275995,1e-08,140.47,140.46,127.90736118]
[1745110295123,1e-08,140.47,140.46,123.63054643]
[1745110299935,1e-08,140.48,140.46,123.63054643]
[1745110300135,1e-08,140.48,140.47,7.59618182]
[1745110301635,1e-08,140.48,140.47,88.89618182]
[1745110302336,1e-08,140.48,140.47,96.0151396]
[1745110302838,1e-08,140.48,140.47,126.39986688]
[1745110303425,1e-08,140.48,140.47,96.0151396]
[1745110304944,1e-08,140.48,140.47,126.39986688]
[1745110305114,0.063,140.51,140.47,144.19726134]
[1745110305313,0.063,140.51,140.5,33.59618182]
[1745110305515,0.063,140.51,140.5,129.13618182]
[1745110306429,1e-08,140.53,140.5,129.13618182]
[1745110306635,1e-08,140.53,140.52,7.59618182]
[1745110307015,0.063,140.54,140.52,14.71260652]
[1745110307330,0.063,140.56,140.55,33.59618182]
[1745110307528,0.063,140.56,140.55,114.89618182]
[1745110308338,1e-08,140.56,140.55,149.11618182]
[1745110308640,0.063,140.57,140.55,179.5009091]
[1745110308940,1e-08,140.57,140.56,37.9809091]
[1745110309116,1e-08,140.57,140.56,45.09530864]
[1745110309318,0.063,140.59,140.57,33.59618182]
[1745110309514,0.063,140.59,140.57,88.89618182]
[1745110309717,1e-08,140.58,140.57,88.89618182]
[1745110311247,1e-08,140.58,140.57,96.01007525]
[1745110311744,1e-08,140.58,140.57,122.01007525]
[1745110314648,6.0732,140.57,140.53,81.3]
[1745110314823,6.0732,140.57,140.53,88.41552972]
[1745110315139,6.0732,140.57,140.53,114.41552972]
[1745110315333,6.0732,140.57,140.53,122.01171154]
[1745110316348,6.0732,140.57,140.54,7.59618182]
[1745110317128,6.0732,140.57,140.54,11.86149425]
[1745110317550,6.0732,140.57,140.53,126.27702397]
[1745110320540,25.04868085,140.57,140.53,81.3]
[1745110320743,11.86149425,140.56,140.53,81.3]
[1745110321744,7.11490572,140.55,140.53,81.3]
[1745110322634,7.11457727,140.56,140.53,81.3]
[1745110326065,7.11457727,140.56,140.53,81.3]
[1745110326659,25.04878351,140.57,140.53,81.3]
[1745110326843,13.18728926,140.57,140.53,93.16149425]
[1745110330364,25.04878351,140.57,140.53,81.3]
[1745110331654,18.64964886,140.56,140.53,81.3]
[1745110331842,30.51114311,140.54,140.49,107.3]
[1745110332042,11.86149425,140.53,140.49,81.3]
[1745110332374,7.11693117,140.51,140.49,81.3]
[1745110333374,11.86149425,140.52,140.49,81.3]
[1745110333554,6.0732,140.57,140.52,26.0]
[1745110333865,6.0732,140.57,140.53,11.86149425]
[1745110334768,6.0732,140.57,140.53,18.97724589]
[1745110336065,17.93469425,140.57,140.53,7.11575164]
[1745110339165,18.64964886,140.56,140.52,107.3]
[1745110339463,11.86149425,140.54,140.52,107.3]
[1745110339666,11.86149425,140.54,140.52,81.3]
[1745110339971,11.86149425,140.55,140.52,81.3]
[1745110340180,11.86149425,140.54,140.52,81.3]
[1745110341170,7.59681019,140.54,140.52,81.3]
[1745110342671,7.59681019,140.54,140.5,7.11739465]
[1745110342969,26.24645905,140.54,140.5,7.11739465]
[1745110343174,30.5189348,140.54,140.5,7.11739465]
[1745110344560,18.64964886,140.54,140.5,18.98668059]
[1745110345373,11.86928594,140.55,140.5,18.98668059]
[1745110346386,18.98422564,140.55,140.5,18.98668059]
[1745110347474,11.86928594,140.55,140.5,18.98668059]
[1745110348676,18.98423666,140.55,140.5,18.98668059]
[1745110349885,18.98423666,140.55,140.5,7.11739465]
[1745110350067,11.86928594,140.51,140.49,81.3]
[1745110350261,30.5189348,140.5,140.47,0.03]
[1745110350457,11.86928594,140.48,140.47,0.03]
[1745110350953,11.86928594,140.49,140.47,0.03]
[1745110351166,11.86928594,140.48,140.47,0.03]
[1745110351558,11.86928594,140.49,140.47,0.03]
[1745110352358,18.98741832,140.49,140.47,0.03]
[1745110356073,11.86928594,140.49,140.47,0.03]
[1745110356279,18.64964886,140.5,140.47,0.03]
[1745110356280,17.89088594,140.51,140.47,0.03]
[1745110356661,25.00785889,140.51,140.47,0.03]
[1745110363277,20.73877739,140.51,140.47,0.03]
[1745110367382,33.36737785,140.5,140.47,0.03]
[1745110372474,1.5045,140.53,140.47,7.63020444]
[1745110372475,18.64964886,140.52,140.47,7.63020444]
[1745110372675,26.2498533,140.52,140.47,7.63020444]
[1745110372983,18.64964886,140.5,140.47,0.03]
[1745110374175,25.76713415,140.5,140.47,0.03]
[1745110375382,18.64964886,140.5,140.47,0.03]
[1745110375602,18.64964886,140.51,140.47,7.63020444]
[1745110375880,18.64964886,140.52,140.47,88.93020444]
[1745110376267,18.64964886,140.52,140.48,6.40660592]
[1745110377085,7.60020444,140.51,140.47,81.33]
[1745110377290,7.60020444,140.5,140.47,81.33]
[1745110378177,14.71746538,140.51,140.47,81.33]
[1745110380584,26.2498533,140.52,140.47,95.33718243]
[1745110380987,33.36629026,140.52,140.47,95.33718243]
[1745110381289,33.36629026,140.52,140.47,87.73697799]
[1745110382089,26.2498533,140.52,140.47,87.73697799]
[1745110383184,33.36638817,140.52,140.47,87.73697799]
[1745110384992,26.2498533,140.52,140.47,87.73697799]
[1745110385693,18.64964886,140.52,140.47,121.33718243]
[1745110386389,18.64964886,140.53,140.48,7.60020444]
[1745110386588,18.64964886,140.53,140.48,88.90020444]
[1745110387276,18.64964886,140.53,140.49,14.00635434]
[1745110387477,14.06990444,140.54,140.49,14.00635434]
[1745110387673,6.4697,140.54,140.49,95.30635434]
[1745110388376,18.64964886,140.54,140.49,95.30635434]
[1745110388896,14.71537734,140.55,140.49,95.30635434]
[1745110389298,14.71537734,140.55,140.5,14.00554582]
[1745110389796,7.60020444,140.54,140.5,6.40534138]
[1745110390799,18.64964886,140.52,140.49,81.3]
[1745110390994,7.60020444,140.51,140.49,81.3]
[1745110392191,14.71688285,140.52,140.49,81.3]
[1745110395182,7.60020444,140.51,140.49,81.3]
[1745110398898,14.71717431,140.51,140.49,81.3]
[1745110399194,26.2498533,140.5,140.47,0.03]
[1745110399504,7.60020444,140.48,140.47,0.03]
[1745110400285,14.71865546,140.48,140.47,0.03]
[1745110400984,33.36830432,140.48,140.47,0.03]
[1745110401703,63.76912208,140.48,140.47,0.03]
[1745110401998,33.36830432,140.48,140.47,0.03]
[1745110403203,7.11759041,140.5,140.47,0.03]
[1745110403405,25.76723927,140.5,140.47,0.03]
[1745110403813,18.64964886,140.5,140.47,0.03]
[1745110404714,26.2498533,140.5,140.47,0.03]
[1745110405616,33.36763209,140.5,140.47,0.03]
[1745110406914,18.64964886,140.5,140.47,0.03]
[1745110407114,26.2498533,140.5,140.47,0.03]
[1745110407508,33.36736725,140.5,140.47,0.03]
[1745110408318,26.2498533,140.5,140.47,0.03]
[1745110413820,7.60020444,140.5,140.47,0.03]
[1745110414023,16.23944854,140.51,140.47,0.03]
[1745110414512,18.64964886,140.54,140.49,7.60020444]
[1745110414697,18.64964886,140.54,140.5,7.60020444]
[1745110416219,18.64964886,140.54,140.5,14.00550505]
[1745110416622,22.2751608,140.56,140.5,14.00550505]
[1745110416823,18.64964886,140.55,140.51,7.60020444]
[1745110417020,1e-08,140.58,140.51,114.90020444]
[1745110417206,7.60020445,140.58,140.52,7.60020444]
[1745110417802,26.24985331,140.58,140.52,7.60020444]
[1745110418003,7.60020444,140.57,140.52,7.60020444]
[1745110418523,7.60020444,140.57,140.53,6.40432647]
[1745110421835,26.24985331,140.58,140.53,87.70432647]
[1745110422127,18.64964887,140.58,140.53,95.30453091]
[1745110424512,1e-08,140.58,140.54,7.60020444]
[1745110424705,1e-08,140.58,140.54,88.90020444]
[1745110425224,1e-08,140.58,140.55,7.60020444]
[1745110425806,1e-08,140.58,140.56,6.40295959]
[1745110426222,1e-08,140.58,140.56,14.00316403]
[1745110426723,1e-08,140.58,140.56,6.40295959]
[1745110428136,1e-08,140.58,140.56,14.00316403]
[1745110429118,1e-08,140.58,140.56,95.30316403]
[1745110429325,1e-08,140.58,140.57,33.60020444]
[1745110429526,1e-08,140.58,140.57,114.90020444]
[1745110431314,1e-08,140.58,140.57,121.30270853]
[1745110432226,1e-08,140.58,140.57,95.30270853]
[1745110432538,1e-08,140.58,140.57,96.92960853]
[1745110433239,1e-08,140.58,140.57,102.63933201]
[1745110433932,1e-08,140.58,140.57,95.30270853]
[1745110436525,1e-08,140.58,140.57,121.30270853]
[1745110442252,1e-08,140.58,140.57,107.3]
[1745110444640,1e-08,140.58,140.57,81.3]
[1745110452628,1e-08,140.58,140.57,95.30270853]
[1745110452838,1e-08,140.58,140.57,88.90020444]
[1745110454456,1e-08,140.58,140.57,95.30270853]
[1745110455261,1e-08,140.58,140.57,81.3]
[1745110466368,1e-08,140.58,140.57,95.30270853]
[1745110473756,1e-08,140.58,140.57,109.50270853]
[1745110481773,1e-08,140.58,140.57,101.90250409]
[1745110481967,1e-08,140.58,140.57,109.50270853]
[1745110490798,1e-08,140.58,140.57,95.30270853]
[1745110491002,1e-08,140.58,140.57,121.30270853]
[1745110498179,1e-08,140.58,140.57,113.70250409]
[1745110499090,1e-08,140.58,140.57,107.3]
[1745110499289,1e-08,140.58,140.57,113.70250409]
[1745110499700,1e-08,140.58,140.57,107.3]
[1745110500200,1e-08,140.58,140.57,113.70250409]
[1745110500402,1e-08,140.58,140.57,121.30270853]
[1745110505503,1e-08,140.58,140.57,114.90020444]
[1745110505799,1e-08,140.58,140.57,107.3]
[1745110506994,1e-08,140.58,140.57,121.30270853]
[1745110507186,0.063,140.62,140.61,26.0]
[1745110507382,0.063,140.62,140.61,40.00088717]
[1745110511831,0.063,140.62,140.61,14.00088717]
[1745110512707,0.063,140.62,140.61,95.30088717]
[1745110527144,0.063,140.62,140.61,81.3]
[1745110528432,26.3128533,140.62,140.61,81.3]
[1745110528627,32.9674533,140.62,140.57,26.0]
[1745110529127,7.60020444,140.61,140.56,88.90020444]
[1745110530047,14.71256152,140.61,140.56,88.90020444]
[1745110530747,18.64964886,140.6,140.56,88.90020444]
[1745110531632,18.64964886,140.6,140.56,81.3]
[1745110533749,25.76235682,140.6,140.56,81.3]
[1745110538045,18.64964886,140.6,140.56,95.30314577]
[1745110538739,25.7620633,140.6,140.56,95.30314577]
[1745110539752,25.7620633,140.6,140.56,88.90020444]
[1745110540235,9.24770444,140.58,140.54,0.03]
[1745110540436,7.60020444,140.56,140.54,0.03]
[1745110540643,7.60020444,140.55,140.54,0.03]
[1745110541051,9.23550444,140.55,140.54,0.03]
[1745110541742,18.64964886,140.53,140.49,0.03]
[1745110541962,14.71662914,140.52,140.49,0.03]
[1745110545353,7.60020444,140.53,140.49,0.03]
[1745110545553,14.15500444,140.54,140.49,88.93020444]
[1745110546753,1.6353,140.55,140.52,7.60020444]
[1745110546942,6.2358,140.58,140.54,7.60020444]
[1745110547132,1.5054,140.59,140.55,7.60020444]
[1745110547835,1.5054,140.59,140.56,7.60020444]
[1745110548756,1.5054,140.59,140.56,14.00300724]
[1745110549255,6.2988,140.62,140.58,7.60020444]
[1745110549663,18.71264886,140.62,140.59,7.60020444]
[1745110551061,18.71264886,140.62,140.59,14.00159013]
[1745110551255,0.063,140.62,140.59,14.00159013]
[1745110551452,0.063,140.62,140.6,7.60020444]
[1745110551758,0.063,140.62,140.6,88.90020444]
[1745110554071,0.063,140.62,140.61,14.00088717]
[1745110554246,0.063,140.62,140.61,121.30088717]
[1745110557555,0.063,140.62,140.61,107.3]
[1745110558957,0.063,140.62,140.61,113.70068273]
[1745110561564,0.063,140.62,140.61,121.30088717]
[1745110562052,18.64964886,140.61,140.56,81.3]
[1745110562252,7.60020444,140.6,140.56,81.3]
[1745110562564,26.2498533,140.61,140.56,81.3]
[1745110562761,1.6356,140.62,140.57,7.60020444]
[1745110563078,1.6356,140.62,140.58,7.60020444]
[1745110563375,0.063,140.62,140.58,7.60020444]
[1745110564488,0.063,140.62,140.59,7.60020444]
[1745110564771,0.063,140.62,140.6,7.60020444]
[1745110565674,0.063,140.62,140.59,88.90020444]
[1745110567280,0.063,140.62,140.59,95.3017249]
[1745110567954,0.063,140.62,140.6,7.60020444]
[1745110568658,0.063,140.62,140.6,14.00133598]
[1745110568976,0.063,140.62,140.61,7.60020444]
[1745110570681,0.063,140.62,140.6,14.00133598]
[1745110571578,0.063,140.62,140.6,7.60020444]
[1745110574374,0.063,140.62,140.6,88.90020444]
[1745110575479,0.063,140.62,140.6,95.30126185]
[1745110577284,0.063,140.62,140.6,88.90020444]
[1745110577983,0.063,140.62,140.6,81.3]
[1745110579187,26.3128533,140.62,140.6,81.3]
[1745110579365,18.71264886,140.62,140.6,81.3]